fUSD/lending_fUSD_20241203
["ID","MTS","AMOUNT","RATE_DAILY","PERIOD"]
[344051762,1733250151111,-1764.81,0.00025,120]
[344051763,1733250151159,-1835.5,0.00025,120]
[344051764,1733250151207,-1222.32,0.00025,120]
[344051765,1733250151255,-1692.81,0.00025,120]
[344051766,1733250151303,-500.0,0.00025,120]
[344051767,1733250151353,-950.5,0.00025,120]
[344051768,1733250151403,-500.0,0.00025,120]
[344051769,1733250151451,-2070.34,0.00025,120]
[344051770,1733250151500,-1869.21,0.00025,120]
[344051771,1733250151549,-1383.85,0.00025,120]
[344051772,1733250151598,-500.0,0.00025,120]
[344051773,1733250151650,-701.87,0.00025,120]
[344051774,1733250151697,-500.0,0.00025,120]
[344051775,1733250151746,-903.33,0.00025,120]
[344051776,1733250151794,-560.8,0.00025,120]
[344051777,1733250151843,-3224.32,0.00025,120]
[344051778,1733250151894,-876.3,0.00025,120]
[344051779,1733250151951,-1051.96,0.00025,120]
[344051780,1733250152004,-255.84502986,0.00025,120]
[344051781,1733250152054,-889.68,0.00025,120]
[344051782,1733250152114,-2155.3,0.00025,120]
[344051783,1733250152167,-1909.89,0.00025,120]
[344051784,1733250152220,-643.07,0.00025,120]
[344051785,1733250152272,-572.16,0.00025,120]
[344051786,1733250152325,-500.0,0.00025,120]
[344051787,1733250152378,-500.0,0.00025,120]
[344051788,1733250152430,-500.0,0.00025,120]
[344051789,1733250152482,-898.33,0.00025,120]
[344051790,1733250152533,-3250.28,0.00025,120]
[344051791,1733250152583,-500.0,0.00025,120]
[344051792,1733250152633,-1669.15,0.00025,120]
[344051793,1733250152683,-754.05,0.00025,120]
[344051794,1733250152735,-623.08,0.00025,120]
[344051795,1733250152786,-2101.6,0.00025,120]
[344051796,1733250152837,-2393.24,0.00025,120]
[344051797,1733250152888,-520.86,0.00025,120]
[344051798,1733250152938,-1196.71,0.00025,120]
[344051799,1733250152989,-962.94,0.00025,120]
[344051800,1733250153040,-992.96,0.00025,120]
[344051801,1733250153092,-2260.57,0.00025,120]
[344051802,1733250153144,-527.97,0.00025,120]
[344051803,1733250153201,-642.57,0.00025,120]
[344051804,1733250153252,-500.0,0.00025,120]
[344051805,1733250153305,-1900.92,0.00025,120]
[344051806,1733250153360,-1095.32,0.00025,120]
[344051807,1733250153416,-500.0,0.00025,120]
[344051808,1733250153841,-5551.36,0.00025,120]
[344051809,1733250153895,-500.0,0.00025,120]
[344051810,1733250153951,-500.0,0.00025,120]
[344051811,1733250154004,-500.0,0.00025,120]
[344051812,1733250154056,-500.0,0.00025,120]
[344051813,1733250154108,-500.0,0.00025,120]
[344051814,1733250154161,-2031.77,0.00025,120]
[344051815,1733250154214,-2813.57,0.00025,120]
[344051816,1733250154268,-3249.1,0.00025,120]
[344051817,1733250154321,-828.96,0.00025,120]
[344051818,1733250154373,-768.74,0.00025,120]
[344051819,1733250154427,-500.0,0.00025,120]
[344051820,1733250154479,-547.46,0.00025,120]
[344051821,1733250154531,-527.92,0.00025,120]
[344051822,1733250154582,-1272.87,0.00025,120]
[344051823,1733250154634,-2123.04,0.00025,120]
[344051824,1733250154685,-1215.43,0.00025,120]
[344051825,1733250154735,-337.12540034,0.00025,120]
[344051826,1733250154785,-500.0,0.00025,120]
[344051827,1733250154837,-2128.54,0.00025,120]
[344051828,1733250154891,-500.0,0.00025,120]
[344051829,1733250154945,-1306.48,0.00025,120]
[344051830,1733250154997,-1670.49,0.00025,120]
[344051831,1733250155048,-1588.2,0.00025,120]
[344051832,1733250155098,-1208.93,0.00025,120]
[344051833,1733250155153,-500.0,0.00025,120]
[344051834,1733250155203,-13075.25,0.00025,120]
[344051835,1733250155254,-500.0,0.00025,120]
[344051836,1733250155302,-500.0,0.00025,120]
[344051837,1733250155351,-2651.03,0.00025,120]
[344051838,1733250155405,-3863.63,0.00025,120]
[344051839,1733250155456,-607.79,0.00025,120]
[344051840,1733250155507,-1199.13,0.00025,120]
[344051841,1733250155559,-894.29,0.00025,120]
[344051842,1733250155610,-3778.56,0.00025,120]
[344051843,1733250155662,-500.0,0.00025,120]
[344051844,1733250155711,-766.88,0.00025,120]
[344051845,1733250155760,-502.8,0.00025,120]
[344051846,1733250155809,-500.0,0.00025,120]
[344051847,1733250155860,-500.0,0.00025,120]
[344051848,1733250155911,-1824.08,0.00025,120]
[344051849,1733250155960,-2408.07,0.00025,120]
[344051850,1733250156008,-997.48,0.00025,120]
[344051851,1733250156057,-903.29,0.00025,120]
[344051852,1733250156109,-2173.46,0.00025,120]
[344051853,1733250156160,-500.0,0.00025,120]
[344051854,1733250156210,-954.9,0.00025,120]
[344051855,1733250156261,-500.0,0.00025,120]
[344051856,1733250156311,-500.0,0.00025,120]
[344051857,1733250156364,-500.0,0.00025,120]
[344051858,1733250156414,-520.27,0.00025,30]
[344051859,1733250156465,-500.0,0.00025,120]
[344051860,1733250156517,-500.0,0.00025,120]
[344051861,1733250156568,-3796.53,0.00025,120]
[344051862,1733250156619,-1093.92,0.00025,120]
[344051863,1733250156669,-500.0,0.00025,120]
[344051864,1733250156719,-3503.39,0.00025,120]
[344051865,1733250156771,-1925.24,0.00025,120]
[344051866,1733250156820,-2164.81,0.00025,120]
[344051867,1733250156872,-500.0,0.00025,120]
[344051868,1733250156924,-983.94,0.00025,120]
[344051869,1733250156974,-500.0,0.00025,120]
[344051870,1733250157027,-500.0,0.00025,120]
[344051871,1733250157078,-2075.5,0.00025,120]
[344051872,1733250157131,-500.0,0.00025,120]
[344051873,1733250157181,-1787.44,0.00025,120]
[344051874,1733250157232,-1303.05,0.00025,120]
[344051875,1733250157283,-893.13,0.00025,120]
[344051876,1733250157333,-500.0,0.00025,120]
[344051877,1733250157386,-1032.78,0.00025,120]
[344051878,1733250157437,-500.0,0.00025,120]
[344051879,1733250157489,-1714.57,0.00025,120]
[344051880,1733250157539,-659.08,0.00025,120]
[344051881,1733250157591,-2716.53,0.00025,120]
[344051882,1733250157642,-1654.32,0.00025,120]
[344051883,1733250157694,-500.0,0.00025,120]
[344051884,1733250157746,-2390.03,0.00025,120]
[344051885,1733250157794,-500.0,0.00025,120]
[344051886,1733250157842,-846.16,0.00025,120]
[344051887,1733250157890,-1000.47,0.00025,120]
[344051888,1733250157943,-6152.88,0.00025,120]
[344051889,1733250157993,-2798.77,0.00025,120]
[344051890,1733250158044,-846.75,0.00025,120]
[344051891,1733250158091,-500.0,0.00025,120]
[344051892,1733250158141,-500.0,0.00025,120]
[344051893,1733250158190,-500.0,0.00025,120]
[344051894,1733250158239,-569.48,0.00025,120]
[344051895,1733250158289,-1771.08,0.00025,120]
[344051896,1733250158337,-2816.66,0.00025,120]
[344051897,1733250158387,-1291.97,0.00025,120]
[344051898,1733250158433,-5777.4,0.00025,120]
[344051899,1733250158482,-513.58,0.00025,120]
[344051900,1733250158529,-500.0,0.00025,120]
[344051901,1733250158578,-672.88,0.00025,120]
[344051902,1733250158918,-500.0,0.00025,120]
[344051903,1733250158968,-500.0,0.00025,120]
[344051904,1733250159017,-1049.55,0.00025,120]
[344051905,1733250159066,-500.0,0.00025,120]
[344051906,1733250159119,-5313.63,0.00025,120]
[344051907,1733250159168,-500.0,0.00025,120]
[344051908,1733250159215,-500.0,0.00025,120]
[344051909,1733250159268,-1014.23,0.00025,120]
[344051910,1733250159317,-653.41,0.00025,120]
[344051911,1733250159368,-500.0,0.00025,120]
[344051912,1733250159418,-1924.64,0.00025,120]
[344051913,1733250159468,-510.46,0.00025,120]
[344051914,1733250159518,-3377.89,0.00025,120]
[344051915,1733250159568,-783.55,0.00025,120]
[344051916,1733250159618,-500.0,0.00025,120]
[344051917,1733250159668,-500.0,0.00025,120]
[344051918,1733250159716,-1857.89,0.00025,120]
[344051919,1733250159765,-942.09,0.00025,120]
[344051920,1733250159814,-8080.73,0.00025,120]
[344051921,1733250159864,-500.0,0.00025,120]
[344051922,1733250159918,-500.0,0.00025,120]
[344051923,1733250159973,-1238.7,0.00025,120]
[344051924,1733250160025,-1557.17,0.00025,120]
[344051925,1733250160093,-1048.08,0.00025,120]
[344051926,1733250160149,-1194.15,0.00025,120]
[344051927,1733250160201,-500.0,0.00025,120]
[344051928,1733250160252,-500.0,0.00025,120]
[344051929,1733250160305,-500.0,0.00025,120]
[344051930,1733250160356,-500.0,0.00025,120]
[344051931,1733250160408,-1252.18,0.00025,120]
[344051932,1733250160459,-2550.0,0.00025,120]
[344051933,1733250160511,-1315.4,0.00025,120]
[344051934,1733250160564,-1671.1,0.00025,120]
[344051935,1733250160615,-500.0,0.00025,120]
[344051936,1733250160665,-500.0,0.00025,120]
[344051937,1733250160714,-1920.8,0.00025,120]
[344051938,1733250160764,-1616.29,0.00025,120]
[344051939,1733250160812,-624.64,0.00025,120]
[344051940,1733250160859,-664.79,0.00025,120]
[344051941,1733250160907,-500.0,0.00025,120]
[344051942,1733250160960,-9473.91,0.00025,120]
[344051943,1733250161007,-888.37,0.00025,120]
[344051944,1733250161054,-934.14,0.00025,120]
[344051945,1733250161103,-500.0,0.00025,120]
[344051946,1733250161158,-500.0,0.00025,120]
[344051947,1733250161208,-5470.04,0.00025,120]
[344051948,1733250161256,-500.0,0.00025,120]
[344051949,1733250161306,-500.0,0.00025,120]
[344051950,1733250161355,-500.0,0.00025,120]
[344051951,1733250161407,-2177.61,0.00025,120]
[344051952,1733250161459,-500.00000016,0.00025,120]
[344051953,1733250161513,-932.69,0.00025,120]
[344051954,1733250161563,-500.0,0.00025,120]
[344051955,1733250161615,-1507.06,0.00025,120]
[344051956,1733250161664,-534.32068714,0.00025,120]
[344051957,1733250161715,-1035.78,0.00025,120]
[344051958,1733250161764,-500.0,0.00025,120]
[344051959,1733250161814,-568.96162348,0.00025,120]
[344051960,1733250161866,-1162.44,0.00025,120]
[344051961,1733250161918,-1636.04,0.00025,120]
[344051962,1733250161970,-1026.35,0.00025,120]
[344051963,1733250162023,-504.85,0.00025,120]
[344051964,1733250162074,-2397.06,0.00025,120]
[344051965,1733250162127,-500.0,0.00025,120]
[344051966,1733250162185,-700.0,0.00025,120]
[344051967,1733250162237,-500.0,0.00025,120]
[344051968,1733250162291,-843.53,0.00025,120]
[344051969,1733250162345,-3519.8,0.00025,120]
[344051970,1733250162399,-1019.72,0.00025,120]
[344051971,1733250162448,-500.0,0.00025,120]
[344051972,1733250162496,-13124.34,0.00025,120]
[344051973,1733250162546,-500.0,0.00025,120]
[344051974,1733250162596,-3068.32,0.00025,120]
[344051975,1733250162649,-500.0,0.00025,120]
[344051976,1733250162698,-7032.66,0.00025,120]
[344051977,1733250162747,-500.0,0.00025,120]
[344051978,1733250162797,-504.19109352,0.00025,120]
[344051979,1733250162845,-1020.63,0.00025,120]
[344051980,1733250162897,-500.0,0.00025,120]
[344051981,1733250162950,-596.47,0.00025,120]
[344051982,1733250162998,-500.0,0.00025,120]
[344051983,1733250163048,-815.26,0.00025,120]
[344051984,1733250163097,-500.0,0.00025,120]
[344051985,1733250163147,-2927.75,0.00025,120]
[344051986,1733250163202,-1347.34,0.00025,120]
[344051987,1733250163256,-500.0,0.00025,120]
[344051988,1733250163314,-500.0,0.00025,120]
[344051989,1733250163375,-500.0,0.00025,120]
[344051990,1733250163433,-500.0,0.00025,120]
[344051991,1733250163492,-574.86,0.00025,120]
[344051992,1733250163549,-500.0,0.00025,120]
[344051993,1733250163602,-861.4,0.00025,120]
[344051994,1733250163661,-500.0,0.00025,120]
[344051995,1733250163712,-632.38,0.00025,120]
[344051996,1733250163763,-1483.9,0.00025,120]
[344051997,1733250164252,-500.0,0.00025,120]
[344051998,1733250164303,-592.16,0.00025,120]
[344051999,1733250164351,-500.0,0.00025,120]
[344052000,1733250164403,-979.38,0.00025,120]
[344052001,1733250164453,-500.0,0.00025,120]
[344052002,1733250164503,-5014.18,0.00025,120]
[344052003,1733250164553,-1750.09,0.00025,120]
[344052004,1733250164603,-943.55,0.00025,120]
[344052005,1733250164654,-500.0,0.00025,120]
[344052006,1733250164704,-3969.65,0.00025,120]
[344052007,1733250164752,-500.0,0.00025,120]
[344052008,1733250164800,-500.0,0.00025,120]
[344052009,1733250164848,-604.73,0.00025,120]
[344052010,1733250164900,-500.0,0.00025,120]
[344052011,1733250164955,-5434.59,0.00025,120]
[344052012,1733250165003,-500.0,0.00025,120]
[344052013,1733250165052,-500.0,0.00025,120]
[344052014,1733250165103,-1589.18,0.00025,120]
[344052015,1733250165155,-18671.56,0.00025,120]
[344052016,1733250165203,-3849.38,0.00025,120]
[344052017,1733250165252,-2657.17,0.00025,120]
[344052018,1733250165304,-500.0,0.00025,120]
[344052019,1733250165354,-961.01,0.00025,60]
[344052020,1733250165403,-1026.54,0.00025,120]
[344052021,1733250165452,-671.02,0.00025,120]
[344052022,1733250165500,-500.0,0.00025,120]
[344052023,1733250165548,-2592.18,0.00025,120]
[344052024,1733250165596,-946.36,0.00025,120]
[344052025,1733250165648,-2033.77,0.00025,120]
[344052026,1733250165697,-500.0,0.00025,120]
[344052027,1733250165746,-2221.52,0.00025,120]
[344052028,1733250165793,-500.0,0.00025,120]
[344052029,1733250165842,-500.0,0.00025,120]
[344052030,1733250165891,-500.0,0.00025,120]
[344052031,1733250165944,-8213.05,0.00025,120]
[344052032,1733250165996,-2262.29,0.00025,120]
[344052033,1733250166044,-607.94,0.00025,120]
[344052034,1733250166094,-2988.28,0.00025,120]
[344052035,1733250166143,-500.0,0.00025,120]
[344052036,1733250166192,-500.0,0.00025,120]
[344052037,1733250166242,-500.0,0.00025,120]
[344052038,1733250166292,-500.0,0.00025,120]
[344052039,1733250166341,-500.0,0.00025,120]
[344052040,1733250166391,-500.0,0.00025,120]
[344052041,1733250166438,-3074.96,0.00025,120]
[344052042,1733250166487,-1270.38,0.00025,120]
[344052043,1733250166535,-991.0,0.00025,120]
[344052044,1733250166585,-500.0,0.00025,120]
[344052045,1733250166633,-3537.68,0.00025,120]
[344052046,1733250166681,-10357.41,0.00025,120]
[344052047,1733250166728,-500.0,0.00025,120]
[344052048,1733250166775,-542.0,0.00025,120]
[344052049,1733250166821,-1379.85,0.00025,120]
[344052050,1733250166871,-500.0,0.00025,120]
[344052051,1733250166921,-500.0,0.00025,120]
[344052052,1733250166971,-3363.26,0.00025,120]
[344052053,1733250167022,-876.68,0.00025,120]
[344052054,1733250167070,-942.36,0.00025,120]
[344052055,1733250167122,-584.67,0.00025,120]
[344052056,1733250167171,-616.39,0.00025,120]
[344052057,1733250167223,-520.77,0.00025,120]
[344052058,1733250167273,-237.64399252,0.00025,120]
[344052059,1733250167323,-3468.94,0.00025,120]
[344052060,1733250167375,-508.55,0.00025,120]
[344052061,1733250167426,-500.0,0.00025,120]
[344052062,1733250167478,-500.0,0.00025,120]
[344052063,1733250167527,-3385.28,0.00025,120]
[344052064,1733250167577,-500.0,0.00025,120]
[344052065,1733250167627,-292.67612258,0.00025,120]
[344052066,1733250167677,-2062.1,0.00025,120]
[344052067,1733250167726,-500.0,0.00025,120]
[344052068,1733250167775,-1736.14,0.00025,120]
[344052069,1733250167823,-568.52,0.00025,120]
[344052070,1733250167874,-500.0,0.00025,120]
[344052071,1733250167927,-313.75424449,0.00025,120]
[344052072,1733250167981,-924.36,0.00025,120]
[344052073,1733250168038,-500.0,0.00025,120]
[344052074,1733250168094,-799.46,0.00025,120]
[344052075,1733250168149,-578.72,0.00025,120]
[344052076,1733250168203,-500.0,0.00025,120]
[344052077,1733250168255,-500.0,0.00025,120]
[344052078,1733250168308,-1840.67,0.00025,120]
[344052079,1733250168361,-1332.38,0.00025,120]
[344052080,1733250168413,-500.0,0.00025,120]
[344052081,1733250168465,-500.0,0.00025,120]
[344052082,1733250168519,-915.31,0.00025,120]
[344052083,1733250168571,-500.0,0.00025,120]
[344052084,1733250168624,-1340.65,0.00025,120]
[344052085,1733250168675,-500.0,0.00025,120]
[344052086,1733250168727,-500.0,0.00025,120]
[344052087,1733250168776,-2197.2,0.00025,120]
[344052088,1733250168829,-500.0,0.00025,120]
[344052089,1733250168880,-1490.8,0.00025,120]
[344052090,1733250169184,-1155.15,0.00025,120]
[344052091,1733250169235,-7518.42,0.00025,120]
[344052092,1733250169288,-500.0,0.00025,120]
[344052093,1733250169338,-908.92,0.00025,120]
[344052094,1733250169389,-3005.41,0.00025,120]
[344052095,1733250169442,-1018.64,0.00025,120]
[344052096,1733250169492,-2336.17,0.00025,120]
[344052097,1733250169546,-500.0,0.00025,120]
[344052098,1733250169597,-2089.81,0.00025,120]
[344052099,1733250169647,-500.0,0.00025,120]
[344052100,1733250169696,-500.0,0.00025,120]
[344052101,1733250169746,-1195.62,0.00025,120]
[344052102,1733250169796,-679.89,0.00025,120]
[344052103,1733250169846,-500.0,0.00025,120]
[344052104,1733250169897,-847.23,0.00025,120]
[344052105,1733250169951,-500.0,0.00025,120]
[344052106,1733250170002,-500.0,0.00025,120]
[344052107,1733250170053,-209.48746002,0.00025,120]
[344052108,1733250170104,-20506.34,0.00025,120]
[344052109,1733250170156,-772.77,0.00025,120]
[344052110,1733250170206,-552.97,0.00025,120]
[344052111,1733250170254,-798.76,0.00025,120]
[344052112,1733250170304,-2057.34,0.00025,120]
[344052113,1733250170351,-500.0,0.00025,120]
[344052114,1733250170403,-4969.08,0.00025,120]
[344052115,1733250170450,-500.0,0.00025,120]
[344052116,1733250170498,-500.0,0.00025,120]
[344052117,1733250170544,-500.0,0.00025,120]
[344052118,1733250170593,-3802.3,0.00025,120]
[344052119,1733250170640,-1003.62,0.00025,120]
[344052120,1733250170688,-1016.13,0.00025,120]
[344052121,1733250170734,-1387.91,0.00025,120]
[344052122,1733250170780,-3438.16,0.00025,120]
[344052123,1733250170828,-500.0,0.00025,120]
[344052124,1733250170877,-2512.52,0.00025,120]
[344052125,1733250170927,-500.0,0.00025,120]
[344052126,1733250170974,-3151.38,0.00025,120]
[344052127,1733250171025,-5965.31,0.00025,120]
[344052128,1733250171074,-723.26,0.00025,120]
[344052129,1733250171123,-500.0,0.00025,120]
[344052130,1733250171173,-1950.46,0.00025,120]
[344052131,1733250171223,-2128.19,0.00025,120]
[344052132,1733250171272,-500.0,0.00025,120]
[344052133,1733250171322,-2248.37,0.00025,120]
[344052134,1733250171371,-500.0,0.00025,120]
[344052135,1733250171416,-500.0,0.00025,120]
[344052136,1733250171468,-687.38,0.00025,120]
[344052137,1733250171515,-500.0,0.00025,120]
[344052138,1733250171561,-2833.83,0.00025,120]
[344052139,1733250171606,-622.91,0.00025,120]
[344052140,1733250171653,-500.0,0.00025,120]
[344052141,1733250171701,-500.0,0.00025,120]
[344052142,1733250171751,-500.0,0.00025,120]
[344052143,1733250171797,-500.0,0.00025,120]
[344052144,1733250171845,-500.0,0.00025,120]
[344052145,1733250171893,-500.0,0.00025,120]
[344052146,1733250171942,-813.4,0.00025,120]
[344052147,1733250171993,-500.0,0.00025,120]
[344052148,1733250172046,-1011.35,0.00025,120]
[344052149,1733250172096,-500.0,0.00025,120]
[344052150,1733250172146,-1015.43,0.00025,120]
[344052151,1733250172199,-507.51,0.00025,120]
[344052152,1733250172252,-1450.99,0.00025,120]
[344052153,1733250172304,-500.0,0.00025079,120]
[344052154,1733250172359,-500.0,0.00025273,120]
[344052155,1733250172412,-500.0,0.00025273,120]
[344052156,1733250172463,-500.0,0.00025273,120]
[344052157,1733250172513,-500.0,0.00025273,120]
[344052158,1733250172563,-500.0,0.00025273,120]
[344052159,1733250172613,-500.0,0.00025273,120]
[344052160,1733250172663,-500.0,0.00025273,120]
[344052161,1733250172711,-500.0,0.00025273,120]
[344052162,1733250172760,-500.0,0.00025273,120]
[344052163,1733250172810,-500.0,0.00025273,120]
[344052164,1733250172859,-500.0,0.00025273,120]
[344052165,1733250172909,-500.0,0.00025273,120]
[344052166,1733250172962,-500.0,0.00025273,120]
[344052167,1733250173013,-500.0,0.00025273,120]
[344052168,1733250173062,-500.0,0.00025273,120]
[344052169,1733250173112,-500.0,0.00025273,120]
[344052170,1733250173173,-438.71417851,0.00025273,120]
[344052171,1733250173225,-500.0,0.00025273,120]
[344052172,1733250173276,-500.0,0.00025273,120]
[344052173,1733250173328,-500.0,0.00025273,120]
[344052174,1733250173379,-500.0,0.00025273,120]
[344052175,1733250173432,-500.0,0.00025273,120]
[344052176,1733250173485,-500.0,0.00025273,120]
[344052177,1733250173537,-500.0,0.00025273,120]
[344052178,1733250173587,-500.0,0.00025273,120]
[344052179,1733250173636,-500.0,0.00025273,120]
[344052180,1733250173686,-500.0,0.00025273,120]
[344052181,1733250173735,-462.18269437,0.00025273,120]
[344052182,1733250173783,-500.0,0.00025273,120]
[344052183,1733250173833,-500.0,0.00025273,120]
[344052184,1733250173884,-500.0,0.00025273,120]
[344052185,1733250174323,-500.0,0.00025273,120]
[344052186,1733250174375,-578.47474429,0.00025273,120]
[344052187,1733250174426,-500.0,0.00025273,120]
[344052188,1733250174477,-500.0,0.00025273,120]
[344052189,1733250174526,-500.0,0.00025273,120]
[344052190,1733250174579,-500.0,0.00025273,120]
[344052191,1733250174635,-500.0,0.00025273,120]
[344052192,1733250174687,-500.0,0.00025273,120]
[344052193,1733250174736,-500.0,0.00025273,120]
[344052194,1733250174786,-500.0,0.00025273,120]
[344052195,1733250174836,-500.0,0.00025273,120]
[344052196,1733250174886,-500.0,0.00025273,120]
[344052197,1733250174935,-500.0,0.00025273,120]
[344052198,1733250174984,-500.0,0.00025273,120]
[344052199,1733250175040,-500.0,0.00025273,120]
[344052200,1733250175095,-500.0,0.00025273,120]
[344052201,1733250175150,-500.0,0.00025273,120]
[344052202,1733250175202,-500.0,0.00025273,120]
[344052203,1733250175257,-500.0,0.00025273,120]
[344052204,1733250175314,-500.0,0.00025273,120]
[344052205,1733250175364,-500.0,0.00025273,120]
[344052206,1733250175426,-500.0,0.00025273,120]
[344052207,1733250175474,-500.0,0.00025273,120]
[344052208,1733250175522,-500.0,0.00025273,120]
[344052209,1733250175570,-500.0,0.00025273,120]
[344052210,1733250175615,-500.0,0.00025273,120]
[344052211,1733250175667,-500.0,0.00025273,120]
[344052212,1733250175713,-500.0,0.00025273,120]
[344052213,1733250175760,-401.60653321,0.00025273,120]
[344052214,1733250175807,-500.0,0.00025273,120]
[344052215,1733250175854,-500.0,0.00025273,120]
[344052216,1733250175909,-500.0,0.00025273,120]
[344052217,1733250175961,-500.0,0.00025273,120]
[344052218,1733250176009,-500.0,0.00025273,120]
[344052219,1733250176061,-500.0,0.00025273,120]
[344052220,1733250176111,-500.0,0.00025273,120]
[344052221,1733250176162,-500.0,0.00025273,120]
[344052222,1733250176210,-500.0,0.00025273,120]
[344052223,1733250176257,-500.0,0.00025273,120]
[344052224,1733250176305,-500.0,0.00025273,120]
[344052225,1733250176353,-500.0,0.00025273,120]
[344052226,1733250176403,-500.0,0.00025273,120]
[344052227,1733250176449,-500.0,0.00025273,120]
[344052228,1733250176498,-500.0,0.00025273,120]
[344052229,1733250176546,-500.0,0.00025273,120]
[344052230,1733250176599,-500.0,0.00025273,120]
[344052231,1733250176645,-500.0,0.00025273,120]
[344052232,1733250176693,-500.0,0.00025273,120]
[344052233,1733250176741,-500.0,0.00025273,120]
[344052234,1733250176789,-500.0,0.00025273,120]
[344052235,1733250176839,-500.0,0.00025273,120]
[344052236,1733250176889,-855.7,0.00025273,120]
[344052237,1733250176939,-500.0,0.00025273,120]
[344052238,1733250176988,-500.0,0.00025273,120]
[344052239,1733250177041,-500.0,0.00025273,120]
[344052240,1733250177091,-946.86,0.00025273,120]
[344052241,1733250177161,-500.0,0.00025273,120]
[344052242,1733250177211,-500.0,0.00025273,120]
[344052243,1733250177263,-500.0,0.00025273,120]
[344052244,1733250177315,-501.34846278,0.00025273,120]
[344052245,1733250177366,-712.66,0.00025273,120]
[344052246,1733250177420,-500.0,0.00025273,120]
[344052247,1733250177472,-500.0,0.00025273,120]
[344052248,1733250177523,-1260.38,0.00025273,120]
[344052249,1733250177572,-949.7,0.00025273,120]
[344052250,1733250177622,-500.0,0.00025273,120]
[344052251,1733250177673,-500.0,0.00025273,120]
[344052252,1733250177723,-910.65,0.00025273,120]
[344052253,1733250177771,-500.0,0.00025273,120]
[344052254,1733250177821,-500.0,0.00025273,120]
[344052255,1733250177870,-687.78,0.00025273,120]
[344052256,1733250177924,-500.0,0.00025273,120]
[344052257,1733250177972,-1018.27,0.00025273,120]
[344052258,1733250178023,-513.03,0.00025273,120]
[344052259,1733250178071,-500.0,0.00025273,120]
[344052260,1733250178122,-500.0,0.00025273,120]
[344052261,1733250178186,-539.47893841,0.00025273,120]